Cogmind - Beta 15 @@@ ROGUE MODE // 2025.05.22 @ 19:04:46 Player: celerysam Result: Destroyed by 4H-BLC(R) with Subdweller Laser Performance ------------- Evolutions (0) 0 Regions Visited (2) 400 Robots Destroyed (25) 125 Value Destroyed (684) 684 Prototype IDs (1) 20 Alien Tech Used (0) 0 Bonus (0) 0 TOTAL SCORE: 1229 Bonus ------- None Cogmind --------- Core Integrity 0/250 Matter 153/300 Energy 156/160 System Corruption 0% Temperature Cool (6) Movement Rolling (131) Ox3 Location -10/Subcaves Parts ------- > --- POWER (1) -------- Light Nuclear Core > --- PROPULSION (2) --- Wheel Subdweller Monowheel > --- UTILITY (2) ------ Huge Storage Unit Structural Scanner > --- WEAPON (2) ------- Beam Cannon Light Cannon > --- INVENTORY (25) --- Ion Engine Light Ion Engine Subdweller Power Source Light Nuclear Core Light Treads Light Treads Makeshift Flight Unit Improved Heat Sink Small Storage Unit Light Armor Plating Medium Armor Plating Scrap Shield Hacking Suite EM Pulse Gun Autogun Improved Assault Rifle Improved Assault Rifle Rocket Launcher Rocket Launcher Subdweller Shrapnel Launcher Datajack Mining Laser Plasma Cutter Enhanced Flamer Peak State ------------ > --- POWER ------------ Ion Engine > --- PROPULSION ------- Wheel Wheel > --- UTILITY ---------- Huge Storage Unit Structural Scanner > --- WEAPON ----------- Improved Assault Rifle Improved Assault Rifle > --- INVENTORY -------- Ion Engine Light Ion Engine Light Nuclear Core Light Treads Light Treads Improved Heat Sink Small Storage Unit Structural Scanner Light Armor Plating Light Armor Plating Medium Armor Plating EM Pulse Gun Beam Cannon Autogun Autogun Improved Assault Rifle Improved Assault Rifle Light Cannon Rocket Launcher Rocket Launcher Rocket Launcher Rocket Launcher Datajack Mining Laser Plasma Cutter [Rating: 15] Favorites ----------- Power Ion Engine Engine Ion Engine Power Core Light Nuclear Core Propulsion Wheel Treads Light Treads Leg Aluminum Leg Wheel Wheel Utility Huge Storage Unit Device Structural Scanner Storage Huge Storage Unit Protection Light Armor Plating Weapon Improved Assault Rifle Energy Gun EM Pulse Gun Energy Cannon Beam Cannon Ballistic Gun Improved Assault Rifle Ballistic Cannon Light Cannon Launcher Subdweller Shrapnel Launcher Special Weapon Mining Laser Build | -11 -10 -10 ------- Run | Yrd Mat Sub Slots Evolved . | . . . Power . | . . . Propulsion . | . . . Utility . | . . . Weapon . | . . . Parts Attached 29 | 5 10 14 Power 4 | 1 2 1 Engine 3 | 1 2 . Core 1 | . . 1 Reactor . | . . . Propulsion 7 | 2 2 3 Treads 1 | . . 1 Leg 2 | 2 . . Wheel 4 | . 2 2 Hover . | . . . Flight . | . . . Utility 5 | 1 2 2 Device 2 | . 1 1 Storage 2 | 1 1 . Processor . | . . . Hackware . | . . . Protection 1 | . . 1 Artifact . | . . . Weapon 13 | 1 4 8 Energy Gun 2 | 1 . 1 Energy Cannon 1 | . . 1 Ballistic Gun 5 | . 4 1 Ballistic Cannon 2 | . . 2 Launcher 1 | . . 1 Special Weapon 2 | . . 2 Impact Weapon . | . . . Slashing Weapon . | . . . Piercing Weapon . | . . . Special Melee Weapon . | . . . Unidentified Prototypes 1 | . 1 . Parts Lost 5 | . 1 4 Power 1 | . 1 . Propulsion 2 | . . 2 Utility . | . . . Weapon 2 | . . 2 Highest Loss Streak 2 | . 1 2 To Critical Strikes . | . . . Average Backups 21 | 5 19 24 Power 3 | . 2 4 Propulsion 3 | 2 3 2 Utility 3 | . 2 5 Weapon 9 | 1 10 10 Tool/Special . | . . . Unused Backups 22 | . 2 20 Power 4 | . . 4 Propulsion 2 | . . 2 Utility 5 | . . 5 Weapon 9 | . 2 7 Tool/Special 2 | . . 2 Average Slot Usage (%) 89 | . 87 91 Engine 12 | . 12 12 Treads 2 | . . 4 Leg 1 | . 2 . Wheel 20 | . 25 15 Device 8 | . 5 11 Storage 14 | . 14 14 Protection 1 | . . 2 Energy Gun 5 | . 2 7 Ballistic Gun 16 | . 23 8 Ballistic Cannon 2 | . . 5 Special Weapon 3 | . . 6 Peak Build Rating 15 | 5 14 15 Average Rating 11 | 3 11 12 On Entrance 6 | . 5 14 Naked Turns . | . . . Heaviest Build 96 | 12 92 96 Greatest Support 30 | 20 26 30 Greatest Overweight (x) 9 | . 8 9 Average Overweight (x) 4 | . 2 7 Largest Inventory Capacity 25 | 8 25 25 Average Capacity 23 | 6 23 25 Most Carried 25 | 7 25 25 Average Carried 21 | 5 19 24 Final Capacity 25 | 8 25 25 Final Carried 25 | 7 25 25 Class Distribution -------------------- 100% | Mutant Dominant Class ---------------- Mutant | -10/Materials Mutant | -10/Subcaves Resources | -11 -10 -10 ----------- Run | Yrd Mat Sub Matter Collected 816 | 250 309 257 Remotely . | . . . Salvage Created 974 | . 717 257 Parts 48 | . 31 17 Haulers Intercepted 2 | . 2 . Recyclers Shooed 1 | . 1 . Parts Field Recycled . | . . . Retrieved Matter . | . . . Parts Self-Destructed 11 | . . 11 Prevented 2 | . . 2 Kills | -11 -10 -10 ------- Run | Yrd Mat Sub Combat Hostiles Destroyed 21 | . 15 6 Guns 20 | . 15 5 Cannons 1 | . . 1 Classes Destroyed 6 | . 5 1 Hauler 2 | . 2 . Recycler 1 | . 1 . Watcher 1 | . 1 . Swarmer 5 | . 5 . Grunt 14 | . 10 4 Subdweller 2 | . . 2 Best Kill Streak 5 | . 5 2 Combat Bots Only 4 | . 4 2 Max Kills in Single Turn 1 | . 1 1 Gunslinging . | . . . Exploded . | . . . Melee . | . . . Uniques/NPCs Destroyed . | . . . Combat | -11 -10 -10 -------- Run | Yrd Mat Sub Hostile Shots Fired 116 | . 65 51 Missed 30 | . 16 14 Hits 86 | . 49 37 Projectile 86 | . 49 37 Critical Strikes 4 | . 1 3 Damage Taken 1131 | . 560 571 Core 261 | . 128 133 Absorbed by Shields . | . . . Core Remaining (%) 100 | 100 . . Volleys Fired 104 | . 52 52 Largest 2 | . 2 2 Hottest 130 | . 63 130 Shots Fired 179 | . 96 83 Gun 138 | . 96 42 Cannon 19 | . . 19 Launcher . | . . . Special 22 | . . 22 Kinetic 132 | . 77 55 Thermal 22 | . . 22 Explosive . | . . . Electromagnetic 25 | . 19 6 Robot Hit Streak 11 | . 11 9 Robot Miss Streak 4 | . 4 2 Penetration Max . | . . . Secondary Targets 2 | . . 2 Max Gunslinging Chain 1 | . . 1 Shots Hit Robots 88 | . 59 29 Core Hits 38 | . 26 12 Critical Kills 1 | . . 1 Critical Parts Destroyed . | . . . Critical Strikes 2 | . . 2 Destroy 1 | . . 1 Corrupt 1 | . . 1 Melee Attacks . | . . . Impact . | . . . Slashing . | . . . Piercing . | . . . Sneak Attacks . | . . . Combat Hostiles . | . . . Follow-up Attacks . | . . . Damage Inflicted 1472 | . 1007 465 Guns 1241 | . 893 348 Cannons 117 | . . 117 Explosions 114 | . 114 . Melee . | . . . Ramming . | . . . Kinetic 1186 | . 762 424 Thermal 114 | . 114 . Explosive . | . . . Electromagnetic 172 | . 131 41 Impact . | . . . Slashing . | . . . Piercing . | . . . Highest Corruption . | . . . Average Corruption . | . . . Corruption Purged . | . . . Corruption Blocked . | . . . Overload Shots . | . . . Overflow Damage . | . . . Projectiles . | . . . Explosions . | . . . Melee . | . . . Knockbacks 1 | . . 1 Impact . | . . . Kinetic 1 | . . 1 Secondary . | . . . Self-Inflicted Damage . | . . . Shots . | . . . Rammed . | . . . Targets Rammed . | . . . Kicked . | . . . Crushed . | . . . Highest Temperature 27 | . 27 11 Average Temperature 9 | . 9 6 Received Heat Transfer 513 | . 267 246 Siege Activations . | . . . Martial Activations . | . . . Shielding Activations . | . . . Robots Disrupted . | . . . Combat Hostiles . | . . . Robots Corrupted . | . . . Combat Hostiles . | . . . Parts Fried 1 | . 1 . Impact Corruptions . | . . . Robots Melted . | . . . Combat Hostiles . | . . . Parts Melted . | . . . Heat Transferred 250 | . 250 . Parts Sabotaged . | . . . Parts Stolen . | . . . Parts Stripped . | . . . Power Chain Reactions 2 | . 2 . Alert | -11 -10 -10 ------- Run | Yrd Mat Sub Maximum Alert Level . | . . . Low Security (%) 100 | 100 100 . Level 1 . | . . . Level 2 . | . . . Level 3 . | . . . Level 4 . | . . . Level 5 . | . . . High Security . | . . . Max Security . | . . . Peak Influence 137 | . 137 . Initial . | . . . Average 42 | . 44 . Influence Increases 524 | . 424 100 Destroy 0b10 Robot/C 380 | . 300 80 Destroy 0b10 Robot/NC 20 | . 20 . Destroy Leader 96 | . 76 20 Successful Hack 10 | . 10 . Destroy Structure 3 | . 3 . Lose Combat Pursuer 15 | . 15 . Influence Decreases 524 | . 394 130 Entered New Map 15 | . . 15 Time Decay 459 | . 384 75 Lost Part 40 | . 10 30 Lost Ally 10 | . . 10 Squads Dispatched 3 | . 3 . Investigation 3 | . 3 . Extermination . | . . . Reinforcement . | . . . Assault . | . . . Garrison . | . . . Intercept . | . . . Searches Triggered . | . . . Construction Impeded . | . . . Haulers Reinforced . | . . . Active Scanning Responses . | . . . Cargo Convoy Interrupts . | . . . Stealth | -11 -10 -10 --------- Run | Yrd Mat Sub Distress Signals 1 | . 1 . Communications Jammed . | . . . Distress Signals . | . . . Times Spotted 34 | . 26 8 Peak Tracking Total 5 | . 5 2 Tactical Retreats 1 | . 1 . Traps | -11 -10 -10 ------- Run | Yrd Mat Sub Traps Triggered 5 | . 5 . Indirectly . | . . . Trap Hack Attempts . | . . . Triggered . | . . . Disarmed . | . . . Reprogrammed . | . . . Reused . | . . . Traps Extracted . | . . . Installed . | . . . Triggered . | . . . Machines | -11 -10 -10 ---------- Run | Yrd Mat Sub Machines Disabled . | . . . Max in Single Turn . | . . . Machines Repaired . | . . . Machines Dismantled . | . . . Machines Sabotaged . | . . . Overloaded Fab Kills . | . . . Hacking | -11 -10 -10 --------- Run | Yrd Mat Sub Machines Accessed 2 | . 2 . Terminals 2 | . 2 . Fabricators . | . . . Repair Stations . | . . . Recycling Units . | . . . Scanalyzers . | . . . Garrison Access . | . . . Total Hacks 3 | . 3 . Successful 2 | . 2 . Failed 1 | . 1 . Catastrophic . | . . . Database Lockouts . | . . . Manual 3 | . 3 . Terminals 3 | . 3 . Fabricators . | . . . Repair Stations . | . . . Recycling Units . | . . . Scanalyzers . | . . . Garrison Access . | . . . Terminal Hacks . | . . . Fabricator Hacks . | . . . Repair Station Hacks . | . . . Recycling Unit Hacks . | . . . Scanalyzer . | . . . Garrison Access Hacks . | . . . Unauthorized Hacks 2 | . 2 . Terminals 2 | . 2 . Assimilate 1 | . 1 . Botnet 1 | . 1 . Fabricators . | . . . Repair Stations . | . . . Recycling Units . | . . . Scanalyzers . | . . . Garrison Access . | . . . Data Cores Recovered . | . . . Used . | . . . Hacking Detections 1 | . 1 . Full Trace Events . | . . . Feedback Events . | . . . Feedback Blocked . | . . . Robot Schematics Acquired . | . . . Robots Built . | . . . Authchips . | . . . Time . | . . . Total Robot Build Rating . | . . . Part Schematics Acquired . | . . . Parts Built . | . . . Authchips . | . . . Time . | . . . Total Part Build Rating . | . . . Parts Repaired . | . . . Time . | . . . Parts Recycled . | . . . Recycled Matter . | . . . Retrieved Matter . | . . . Retrieved Components . | . . . Parts Scanalyzed . | . . . Part Schematics Acquired . | . . . Parts Damaged . | . . . Bothacking | -11 -10 -10 ------------ Run | Yrd Mat Sub Used RIF Installer . | . . . Robots Hacked . | . . . Non-combat . | . . . Combat . | . . . Robot Hacks Applied . | . . . Relay Couplers Released . | . . . Fabnet Peak Effective % . | . . . Robots Rewired . | . . . Allies Hacked . | . . . Hacks Repelled . | . . . Allies | -11 -10 -10 -------- Run | Yrd Mat Sub Total Allies 1 | . 1 . Largest Group 1 | . 1 1 Highest-Rated Group 10 | . 10 10 Highest-Rated Ally 10 | . 10 10 Total Orders . | . . . Ally Attacks . | . . . Total Damage . | . . . Kills . | . . . Allies Corrupted . | . . . Allies Melted . | . . . Intel | -11 -10 -10 ------- Run | Yrd Mat Sub Active Infowar (turns) 1438 | . 470 968 Structural 1438 | . 470 968 Robot Analysis Total . | . . . Derelict Logs Recovered 3 | . . 3 Drone Launches . | . . . Drone Recoveries . | . . . Exploration | -11 -10 -10 ------------- Run | Yrd Mat Sub Turns Passed 2431 | 67 1220 1144 Spaces Moved 1202 | 51 670 481 Core 11 | 11 . . Treads . | . . . Legs 114 | 40 74 . Wheels 1077 | . 596 481 Hover . | . . . Flight . | . . . Fastest Speed 50 | 50 120 119 Average Speed 156 | 104 133 193 Slowest Speed 215 | 120 200 215 Overloaded Moves . | . . . Propulsion Burnouts . | . . . Robots Hopped . | . . . Potential Cave-ins . | . . . Cave-ins Triggered . | . . . Exploration Rate (%) 44 | 4 93 37 Regions Visited 2 Branch Regions 1 Pre-discovered Areas 1 | . . 1 Known Exits Taken . | . . . Unknown Exits Taken 2 | 1 1 . Scrap Searched 4 | . . 4 Spaces Dug 2 | . . 2 Terrain Destroyed 5 | . 3 2 Melee . | . . . Projectile 2 | . . 2 AOE 3 | . 3 . Terrain Rammed . | . . . Walls Destroyed . | . . . Machines Disabled . | . . . Actions | -11 -10 -10 --------- Run | Yrd Mat Sub Total 1530 | 62 901 567 Wait 126 | . 126 . Move 1200 | 50 669 481 Hop . | . . . Pick Up 46 | 7 29 10 Fast Attach 10 | 5 5 . Attach 9 | . 5 4 Detach 1 | . 1 . Swap 18 | . 6 12 Drop 16 | . 8 8 Fire 104 | . 52 52 Melee . | . . . Ram . | . . . Kick . | . . . Crush . | . . . Escape Stasis . | . . . Rewire . | . . . Trap . | . . . Miscellaneous . | . . . Route ------- -11/Scrapyard -10/Materials (discovered 5 exits: [*Mat x3] / [*Min] / [*Sub]) -10/Subcaves (discovered 1 exit: [*Mat]) History --------- Turn | Location | Event 9 | -11/Scrapyard | Discovered new exit (range 13) 68 | -11/Scrapyard | Entered Materials 222 | -10/Materials | Discovered new exit (range 9) 318 | -10/Materials | Build established: Mutant 593 | -10/Materials | Discovered new exit (range 16) 611 | -10/Materials | Discovered new exit (range 9) 897 | -10/Materials | Discovered new exit (range 16) 1049 | -10/Materials | Discovered new exit (range 11) 1226 | -10/Materials | Core integrity fell below 50% 1288 | -10/Materials | Entered Subcaves 1288 | -10/Subcaves | Accompanied by 1 ally 1695 | -10/Subcaves | Shifting Twisted Machinery released Enh. Flamer 1710 | -10/Subcaves | Shifting Twisted Machinery released Mak. Flight Unit 1745 | -10/Subcaves | Learned 2 Materials zone layouts 1820 | -10/Subcaves | A swath of the cavern ceiling suddenly collapsed 2007 | -10/Subcaves | Core integrity fell below 20% 2021 | -10/Subcaves | Discovered new exit (range 4) 2081 | -10/Subcaves | Shifting Twisted Machinery released Sub. Optics 2085 | -10/Subcaves | Shifting Twisted Machinery released Sub. Monowheel 2095 | -10/Subcaves | Learned 2 Materials zone layouts 2432 | -10/Subcaves | Destroyed by 4H-BLC(R) with Subdweller Laser Last Messages --------------- 01939_ Dropped Rocket Launcher. 01940_ Acquired Sub. Shrapnel Launcher. 01995_ Y6-XZK(R) knocked back. 02001_ Y6-XZK(R) destroyed. 02002_ Battle Cannon destroyed. 02013_ VE-SOP(R) destroyed. 02021_ Acquired 33 matter. 02021_ EXIT=FOUND 02025_ Acquired Sub. Power Source. 02033_ OT-WZL(u) builds Twisted Machinery. Sub. Optics falls loose from the Twisted Machinery. Sub. Monowheel falls loose from the Twisted Machinery. 02095_ Acquired derelict log, extracted data. Data stored: Materials zone layouts (x2). 02123_ Acquired 14 matter. 02338_ Dropped Ion Engine. 02339_ Acquired Sub. Monowheel. 02393_ Subatomizers dissect the Ion Engine. Map ----- +----------------------------------------------------+ | ???????????????????????#### #####" "### | | ????????????????????######""######### | | ???????????????????######%!### ""##### | | ??????????????????#### "% ## """""### | | ?????????????????#### &&&" "" ""####### | | ?????????????????### """"" <" ########### | | ??????????????## ## "" ##?###" #### # | | ????????????#### ##### "## ##?## " ###### # | | ????????????## ####### "#####?###"" ###### | | ?????????? ###?## " ####??###""##### | | ????????? ?????## ###?###### | | ????????? # # ??????## ########## | | ????????? ######??????### ##### ### | | ????????????###### ?????## ## ## ###### | | ?????????????????? ###### ### ##### | | ?????????????????? ###### ## ###### | | ??????????????????## ## ### ##### | | ??????????????????### # #### | | ???????????????????##### #### | | ???????????????????###### ## #### | | ?????????????????####?#### ### ##### | | ??????????? ??######### ## ###### | | ??????????? # ##### ## ! ###### | | ??????????? ## " #### | | ??????????? ##### "" " | | ???????????????## # @# ########### "" | | ???????????????## ??### ###### ###########"" | | ???????????????# ??? ## ###### ###????### * | | ?????????????????????? R R##??#### ##?????### | | ?????????????????????? #???#### ##?????##### | | ????????????????????? #????########??????#### | | ??????????????????## ######??????######?????????? | | ??????????????????## #######?????????????????????? | | ??????????????????#####??????????????????????????? | | ??????????????????####???????????????????????????? | | ?????????????????????????????????????????????????? | | ?????????????????????????????????????????????????? | | ?????????????????????????????????????????????????? | | ?????????????????????????????????????????????????? | | ?????????????????????????????????????????????????? | | ?????????????????????????????????????????????????? | | ?????????????????????????????????????????????????? | | ?????????????????????????????????????????????????? | | ?????????????????????????????????????????????????? | | ?????????????????????????????????????????????????? | | ?????????????????????????????????????????????????? | | ?????????????????????????????????????????????????? | | ?????????????????????????????????????????????????? | | | | | +----------------------------------------------------+ Best States ------------- Heat Dissipation 25 Energy Generation 14 Energy Capacity 250 Matter Stores 300 Matter Capacity 300 Sight Range 16 Terrain Scan Density 10 Armor Coverage 150 Evasion (%) 55 Item Schematics ----------------- None Robot Schematics ------------------ None Fabricated ------------ Nothing Repaired ---------- Nothing Alien Tech Used ----------------- None Achievements -------------- None Challenges ------------ None Game ------ Seed GhostBackupSuite Manual? 0 Play Time 00:22:19 Cumulative 259.2 hours Start 2025.05.22 @ 18:37:09 End 2025.05.22 @ 19:04:46 Sessions 1 Manual Loads 0 Difficulty Rogue Special Mode None Game No. 390 Rogue 390 Adventurer 0 Explorer 0 Win Type - Total 1 Types 1/0/0/0/0/0/0/0/0/0 Lore% 63 Gallery% 62 Achievement% 43 Wizard Run 0 Options --------- Layout 1 ASCII 0 Keyboard 0 Movement Mouse Keybinds 0 Fullscreen 2 Font 24/Smallcaps Map View 50x35 Zoom Use 0% Tactical HUD 1 Map Filters NONE Filters NONE Steam 1 RUN: f447ecf3-0d04-4135-a874-d5aa7f513aa5